fUST/lending_fUST_20250705
["ID","MTS","AMOUNT","RATE_DAILY","PERIOD"]
[369709252,1751707866157,-153.645892,0.00020261,2]
[369709253,1751707866166,-151.0,0.00020268,2]
[369709254,1751707866176,-460.0,0.00020273,2]
[369709255,1751707866187,-460.0,0.00020273,2]
[369709256,1751707866197,-225.298587,0.00020273,2]
[369709257,1751707866206,-225.298587,0.00020273,2]
[369709258,1751707866215,-151.0,0.00020273,2]
[369709259,1751707866225,-460.0,0.00020273,2]
[369709260,1751707866235,-460.0,0.00020273,2]
[369709261,1751707866244,-460.0,0.00020273,2]
[369709262,1751707866253,-460.0,0.00020273,2]
[369709263,1751707866263,-515.20110158,0.00020273,2]
[369709264,1751707866273,-682.29,0.00020273,2]
[369709265,1751707866282,-460.0,0.00020273,2]
[369709266,1751707866292,-460.0,0.00020273,2]
[369709267,1751707866301,-460.0,0.00020273,2]
[369709268,1751707866310,-460.0,0.00020273,2]
[369709269,1751707866320,-460.0,0.00020273,2]
[369709270,1751707866329,-543.09,0.00020273,2]
[369709271,1751707866338,-460.0,0.00020273,2]
[369709272,1751707866348,-460.0,0.00020273,2]
[369709273,1751707866357,-460.0,0.00020273,2]
[369709274,1751707866367,-298.75,0.00020273,2]
[369709275,1751707866377,-460.0,0.00020273,2]
[369709276,1751707866387,-469.32,0.00020273,2]
[369709277,1751707866397,-460.0,0.00020273,2]
[369709278,1751707866406,-460.0,0.00020273,2]
[369709279,1751707866416,-430.61379665,0.00020273,2]
[369709280,1751707866427,-460.0,0.00020273,2]
[369709281,1751707866436,-288.68,0.00020273,2]
[369709282,1751707866446,-460.0,0.00020273,2]
[369709283,1751707866456,-460.0,0.00020273,2]
[369709284,1751707866465,-460.0,0.00020273,2]
[369709285,1751707866475,-460.0,0.00020273,2]
[369709286,1751707866485,-151.0,0.00020273,2]
[369709287,1751707866494,-460.0,0.00020273,2]
[369709288,1751707866504,-460.0,0.00020273,2]
[369709289,1751707866513,-460.0,0.00020273,2]
[369709290,1751707866523,-235.56,0.00020273,2]
[369709291,1751707866533,-538.2,0.00020273,2]
[369709292,1751707866543,-460.0,0.00020273,2]
[369709293,1751707866552,-460.0,0.00020273,2]
[369709294,1751707866562,-526.86,0.00020273,2]
[369709295,1751707866571,-460.0,0.00020273,2]
[369709296,1751707866581,-460.0,0.00020273,2]
[369709297,1751707866590,-591.71,0.00020273,2]
[369709298,1751707866600,-660.66,0.00020273,2]
[369709299,1751707866609,-460.0,0.00020273,2]
[369709300,1751707866619,-460.0,0.00020273,2]
[369709301,1751707866628,-460.0,0.00020273,2]
[369709302,1751707866637,-460.0,0.00020273,2]
[369709303,1751707866647,-460.0,0.00020273,2]
[369709304,1751707866655,-151.0,0.00020273,2]
[369709305,1751707866665,-460.0,0.00020273,2]
[369709306,1751707866674,-684.71,0.00020273,2]
[369709307,1751707866683,-485.37,0.00020273,2]
[369709308,1751707866692,-460.0,0.00020273,2]
[369709309,1751707866702,-460.0,0.00020273,2]
[369709310,1751707866711,-460.0,0.00020273,2]
[369709311,1751707866721,-460.0,0.00020273,2]
[369709312,1751707866730,-484.47,0.00020273,2]
[369709313,1751707866739,-460.0,0.00020273,2]
[369709314,1751707866749,-460.0,0.00020273,2]
[369709315,1751707866758,-151.0,0.00020273,2]
[369709316,1751707866769,-460.0,0.00020273,2]
[369709317,1751707866780,-152.616806,0.00020273,2]
[369709318,1751707866790,-460.0,0.00020273,2]
[369709319,1751707866800,-252.11,0.00020273,2]
[369709320,1751707866811,-557.69,0.00020273,2]
[369709321,1751707866820,-460.0,0.00020273,2]
[369709322,1751707866830,-151.0,0.00020273,2]
[369709323,1751707866839,-460.0,0.00020273,2]
[369709324,1751707866850,-460.0,0.00020273,2]
[369709325,1751707866859,-460.0,0.00020273,2]
[369709326,1751707866868,-460.0,0.00020273,2]
[369709327,1751707866878,-460.0,0.00020273,2]
[369709328,1751707866887,-169.8,0.00020273,2]
[369709329,1751707866896,-460.0,0.00020273,2]
[369709330,1751707866905,-477.72,0.00020273,2]
[369709331,1751707866915,-1087.2,0.00020273,2]
[369709332,1751707866925,-460.0,0.00020273,2]
[369709333,1751707866934,-460.0,0.00020273,2]
[369709334,1751707866944,-460.0,0.00020273,2]
[369709335,1751707866953,-460.0,0.00020273,2]
[369709336,1751707866962,-261.710663,0.00020273,2]
[369709337,1751707866971,-534.06,0.00020273,2]
[369709338,1751707866980,-3781.13,0.00020273,2]
[369709339,1751707866990,-261.710663,0.00020273,2]
[369709340,1751707866999,-462.71057095,0.00020273,2]
[369709341,1751707867008,-521.89,0.00020273,2]
[369709342,1751707867021,-460.0,0.00020273,2]
[369709343,1751707867031,-180.42,0.00020273,2]
[369709344,1751707867040,-460.0,0.00020273,2]
[369709345,1751707867049,-1571.06,0.00020273,2]
[369709346,1751707867058,-460.0,0.00020273,2]
[369709347,1751707867068,-460.0,0.00020273,2]
[369709348,1751707867077,-207.96,0.00020273,2]
[369709349,1751707867086,-151.0,0.00020273,2]
[369709350,1751707867095,-460.0,0.00020273,2]
[369709351,1751707867105,-352.39,0.00020273,2]
[369709352,1751707867115,-1037.13,0.00020273,2]
[369709353,1751707867124,-460.0,0.00020273,2]
[369709354,1751707867134,-460.0,0.00020273,2]
[369709355,1751707867144,-3582.28,0.00020273,2]
[369709356,1751707867153,-460.0,0.00020273,2]
[369709357,1751707867162,-460.0,0.00020273,2]
[369709358,1751707867171,-460.0,0.00020273,2]
[369709359,1751707867180,-406.60831122,0.00020273,2]
[369709360,1751707867190,-400.89,0.00020273,2]
[369709361,1751707867199,-2764.96,0.00020273,2]
[369709362,1751707867208,-558.92,0.00020273,2]
[369709363,1751707867217,-460.0,0.00020273,2]
[369709364,1751707867227,-604.66,0.00020273,2]
[369709365,1751707867236,-1350.46,0.00020273,2]
[369709366,1751707867245,-1103.03,0.00020273,2]
[369709367,1751707867255,-460.0,0.00020273,2]
[369709368,1751707867266,-612.38,0.00020273,2]
[369709369,1751707867276,-427.07,0.00020273,2]
[369709370,1751707867285,-460.0,0.00020273,2]
[369709371,1751707867295,-460.0,0.00020273,2]
[369709372,1751707867304,-436.17,0.00020273,2]
[369709373,1751707867314,-789.8,0.00020273,2]
[369709374,1751707867323,-460.0,0.00020273,2]
[369709375,1751707867332,-460.0,0.00020273,2]
[369709376,1751707867342,-400.31,0.00020273,2]
[369709377,1751707867351,-316.44,0.00020273,2]
[369709378,1751707867360,-1554.87,0.00020273,2]
[369709379,1751707867370,-469.04,0.00020273,2]
[369709380,1751707867379,-460.0,0.00020273,2]
[369709381,1751707867388,-525.18,0.00020273,2]
[369709382,1751707867398,-1860.12,0.00020273,2]
[369709383,1751707867407,-773.29,0.00020273,2]
[369709384,1751707867416,-2251.26,0.00020273,2]
[369709385,1751707867426,-460.0,0.00020273,2]
[369709386,1751707867435,-217.38,0.00020273,2]
[369709387,1751707867445,-460.0,0.00020273,2]
[369709388,1751707867454,-460.0,0.00020273,2]
[369709389,1751707867463,-460.0,0.00020273,2]
[369709390,1751707867473,-460.0,0.00020273,2]
[369709391,1751707867482,-3715.95,0.00020273,2]
[369709392,1751707867492,-595.4,0.00020273,2]
[369709393,1751707867502,-460.0,0.00020273,2]
[369709394,1751707867511,-611.53,0.00020273,2]
[369709395,1751707867521,-460.0,0.00020273,2]
[369709396,1751707867530,-184.51,0.00020273,2]
[369709397,1751707867540,-460.0,0.00020273,2]
[369709398,1751707867549,-563.95,0.00020273,2]
[369709399,1751707867558,-460.0,0.00020273,2]
[369709400,1751707867567,-460.0,0.00020273,2]
[369709401,1751707867577,-1475.55,0.00020273,2]
[369709402,1751707867586,-1348.12,0.00020273,2]
[369709403,1751707867595,-600.97,0.00020273,2]
[369709404,1751707867604,-460.0,0.00020273,2]
[369709405,1751707867613,-262.63,0.00020273,2]
[369709406,1751707867623,-1571.18,0.00020273,2]
[369709407,1751707867632,-609.01759868,0.00020273,2]
[369709408,1751707867641,-460.0,0.00020273,2]
[369709409,1751707867650,-263.2,0.00020273,2]
[369709410,1751707867660,-460.0,0.00020273,2]
[369709411,1751707867670,-460.0,0.00020273,2]
[369709412,1751707867680,-460.0,0.00020273,2]
[369709413,1751707867689,-460.0,0.00020273,2]
[369709414,1751707867698,-840.45,0.00020273,2]
[369709415,1751707867707,-460.0,0.00020273,2]
[369709416,1751707867717,-532.91,0.00020273,2]
[369709417,1751707867726,-460.0,0.00020273,2]
[369709418,1751707867735,-460.0,0.00020273,2]
[369709419,1751707867745,-460.0,0.00020273,2]
[369709420,1751707867754,-876.43,0.00020273,2]
[369709421,1751707867764,-3634.14,0.00020273,2]
[369709422,1751707867773,-460.0,0.00020273,2]
[369709423,1751707867782,-460.0,0.00020273,2]
[369709424,1751707867791,-460.0,0.00020273,2]
[369709425,1751707867800,-155.45,0.00020273,2]
[369709426,1751707867809,-460.0,0.00020273,2]
[369709427,1751707867819,-460.0,0.00020273,2]
[369709428,1751707867828,-2031.79,0.00020273,2]
[369709429,1751707867837,-370.33875773,0.00020273,2]
[369709430,1751707867846,-460.0,0.00020273,2]
[369709431,1751707867856,-500.0,0.00020274,2]
[369709432,1751707867865,-694.0,0.00020274,2]
[369709433,1751707867874,-304.73073947,0.00020274,2]
[369709434,1751707867883,-500.0,0.00020301,2]
[369709435,1751707867892,-694.0,0.00020301,2]
[369709436,1751707867902,-151.0,0.00020328,2]
[369709437,1751707867911,-151.0,0.00020328,2]
[369709438,1751707867921,-151.0,0.00020328,2]
[369709439,1751707867931,-500.0,0.00020329,2]
[369709440,1751707867941,-694.0,0.00020329,2]
[369709441,1751707867951,-205.49733553,0.00020335,3]
[369709442,1751707867960,-500.0,0.00020356,2]
[369709443,1751707867971,-694.0,0.00020356,2]
[369709444,1751707867981,-500.0,0.00020383,2]
[369709445,1751707867997,-694.0,0.00020383,2]
[369709446,1751707868006,-500.0,0.00020411,2]
[369709447,1751707868017,-694.0,0.00020411,2]
[369709448,1751707868026,-8219.26713159,0.00020422,2]
[369709449,1751707868036,-512.0,0.00020438,2]
[369709450,1751707868045,-698.0,0.00020438,2]
[369709451,1751707868054,-152.014631,0.00020506,2]
[369709452,1751707868063,-151.0,0.00020506,2]
[369709453,1751707868073,-151.0,0.00020506,2]
[369709454,1751707868083,-151.0,0.00020506,2]
[369709455,1751707868092,-151.0,0.00020506,2]
[369709456,1751707868102,-151.0,0.00020506,2]
[369709457,1751707868111,-151.0,0.00020506,2]
[369709458,1751707868120,-151.0,0.00020535,2]
[369709459,1751707868130,-651.32159818,0.00020536,2]
[369709460,1751707868140,-500.0,0.00020539,2]
[369709461,1751707868150,-181.52665766,0.00020539,2]
[369709462,1751707868159,-151.0,0.00020547,2]
[369709463,1751707868169,-152.527497,0.00020547,2]
[369709464,1751707868179,-151.0,0.00020547,2]
[369709465,1751707868189,-460.0,0.00020547,2]
[369709466,1751707868198,-460.0,0.00020547,2]
[369709467,1751707868208,-151.0,0.00020547,2]
[369709468,1751707868218,-151.0,0.00020547,2]
[369709469,1751707868228,-151.0,0.00020547,2]
[369709470,1751707868238,-240.93,0.00020547,2]
[369709471,1751707868247,-460.0,0.00020547,2]
[369709472,1751707868257,-460.0,0.00020547,2]
[369709473,1751707868268,-682.29,0.00020547,2]
[369709474,1751707868277,-200.19,0.00020547,2]
[369709475,1751707868287,-460.0,0.00020547,2]
[369709476,1751707868297,-460.0,0.00020547,2]
[369709477,1751707868306,-460.0,0.00020547,2]
[369709478,1751707868316,-460.0,0.00020547,2]
[369709479,1751707868326,-224.56,0.00020547,2]
[369709480,1751707868335,-469.32,0.00020547,2]
[369709481,1751707868345,-151.0,0.00020547,2]
[369709482,1751707868354,-173.11932534,0.00020547,2]
[369709483,1751707868364,-323.05,0.00020547,2]
[369709484,1751707868373,-151.0,0.00020547,2]
[369709485,1751707868382,-460.0,0.00020547,2]
[369709486,1751707868392,-215.06,0.00020547,2]
[369709487,1751707868401,-597.14990976,0.00020547,2]
[369709488,1751707868411,-460.0,0.00020547,2]
[369709489,1751707868421,-460.0,0.00020547,2]
[369709490,1751707868430,-492.27676512,0.00020547,2]
[369709491,1751707868440,-421.68,0.00020547,2]
[369709492,1751707868450,-460.0,0.00020547,2]
[369709493,1751707868460,-526.86,0.00020547,2]
[369709494,1751707868469,-231.65,0.00020547,2]
[369709495,1751707868479,-660.66,0.00020547,2]
[369709496,1751707868488,-250.58,0.00020547,2]
[369709497,1751707868497,-460.0,0.00020547,2]
[369709498,1751707868507,-460.0,0.00020547,2]
[369709499,1751707868517,-460.0,0.00020547,2]
[369709500,1751707868526,-684.71,0.00020547,2]
[369709501,1751707868536,-460.0,0.00020547,2]
[369709502,1751707868545,-177.56,0.00020547,2]
[369709503,1751707868555,-484.47,0.00020547,2]
[369709504,1751707868564,-186.49,0.00020547,2]
[369709505,1751707868573,-204.36,0.00020547,2]
[369709506,1751707868582,-190.18,0.00020547,2]
[369709507,1751707868592,-460.0,0.00020547,2]
[369709508,1751707868601,-460.0,0.00020547,2]
[369709509,1751707868610,-400.129267,0.00020547,2]
[369709510,1751707868620,-400.129267,0.00020547,2]
[369709511,1751707868629,-1087.2,0.00020547,2]
[369709512,1751707868639,-460.0,0.00020547,2]
[369709513,1751707868648,-459.32308385,0.00020547,2]
[369709514,1751707868657,-3781.13,0.00020547,2]
[369709515,1751707868666,-521.89,0.00020547,2]
[369709516,1751707868675,-460.0,0.00020547,2]
[369709517,1751707868685,-460.0,0.00020547,2]
[369709518,1751707868694,-1571.06,0.00020547,2]
[369709519,1751707868704,-460.0,0.00020547,2]
[369709520,1751707868713,-460.0,0.00020547,2]
[369709521,1751707868723,-1037.13,0.00020547,2]
[369709522,1751707868732,-355.34,0.00020547,2]
[369709523,1751707868741,-460.0,0.00020547,2]
[369709524,1751707868751,-3582.28,0.00020547,2]
[369709525,1751707868760,-460.0,0.00020547,2]
[369709526,1751707868771,-460.0,0.00020547,2]
[369709527,1751707868782,-460.0,0.00020547,2]
[369709528,1751707868791,-2764.96,0.00020547,2]
[369709529,1751707868801,-173.78674107,0.00020547,2]
[369709530,1751707868810,-604.66,0.00020547,2]
[369709531,1751707868822,-1350.46,0.00020547,2]
[369709532,1751707868831,-1103.03,0.00020547,2]
[369709533,1751707868840,-460.0,0.00020547,2]
[369709534,1751707868851,-612.38,0.00020547,2]
[369709535,1751707868860,-460.0,0.00020547,2]
[369709536,1751707868870,-460.0,0.00020547,2]
[369709537,1751707868879,-789.8,0.00020547,2]
[369709538,1751707868888,-460.0,0.00020547,2]
[369709539,1751707868898,-1554.87,0.00020547,2]
[369709540,1751707868907,-469.04,0.00020547,2]
[369709541,1751707868916,-460.0,0.00020547,2]
[369709542,1751707868926,-525.18,0.00020547,2]
[369709543,1751707868935,-1860.12,0.00020547,2]
[369709544,1751707868946,-773.29,0.00020547,2]
[369709545,1751707868956,-2251.26,0.00020547,2]
[369709546,1751707868965,-460.0,0.00020547,2]
[369709547,1751707869098,-182.89,0.00020547,2]
[369709548,1751707869108,-460.0,0.00020547,2]
[369709549,1751707869117,-3715.95,0.00020547,2]
[369709550,1751707869126,-595.4,0.00020547,2]
[369709551,1751707869135,-151.0,0.00020547,2]
[369709552,1751707869145,-272.978804,0.00020547,2]
[369709553,1751707869154,-460.0,0.00020547,2]
[369709554,1751707869163,-272.978804,0.00020547,2]
[369709555,1751707869172,-611.53,0.00020547,2]
[369709556,1751707869181,-460.0,0.00020547,2]
[369709557,1751707869190,-460.0,0.00020547,2]
[369709558,1751707869199,-563.95,0.00020547,2]
[369709559,1751707869209,-460.0,0.00020547,2]
[369709560,1751707869218,-1475.55,0.00020547,2]
[369709561,1751707869227,-1348.12,0.00020547,2]
[369709562,1751707869236,-460.0,0.00020547,2]
[369709563,1751707869245,-460.0,0.00020547,2]
[369709564,1751707869255,-1571.18,0.00020547,2]
[369709565,1751707869264,-460.0,0.00020547,2]
[369709566,1751707869273,-460.0,0.00020547,2]
[369709567,1751707869283,-460.0,0.00020547,2]
[369709568,1751707869292,-460.0,0.00020547,2]
[369709569,1751707869301,-356.37,0.00020547,2]
[369709570,1751707869311,-840.45,0.00020547,2]
[369709571,1751707869321,-151.0,0.00020547,2]
[369709572,1751707869331,-460.0,0.00020547,2]
[369709573,1751707869341,-532.91,0.00020547,2]
[369709574,1751707869350,-460.0,0.00020547,2]
[369709575,1751707869360,-544.74124202,0.00020547,2]
[369709576,1751707869369,-282.7,0.00020547,2]
[369709577,1751707869379,-3634.14,0.00020547,2]
[369709578,1751707869388,-460.0,0.00020547,2]
[369709579,1751707869397,-876.43,0.00020547,2]
[369709580,1751707869406,-580.54,0.00020547,2]
[369709581,1751707869416,-460.0,0.00020547,2]
[369709582,1751707869427,-460.0,0.00020547,2]
[369709583,1751707869437,-460.0,0.00020547,2]
[369709584,1751707869446,-2031.79,0.00020547,2]
[369709585,1751707869456,-460.0,0.00020547,2]
[369709586,1751707869465,-205.49733553,0.00020552,3]
[369709587,1751707869475,-160.388889,0.00020554,2]
[369709588,1751707869484,-1500.0,0.00020568,2]
[369709589,1751707869493,-1500.0,0.00020568,2]
[369709590,1751707869503,-405.51634911,0.00020568,2]
[369709591,1751707869512,-1500.0,0.00020568,2]
[369709592,1751707869522,-1500.0,0.00020568,2]
[369709593,1751707869532,-1516.8785258,0.00020568,2]
[369709594,1751707869541,-168.0,0.00020585,2]
[369709595,1751707869551,-4206.07,0.000206,2]
[369709596,1751707869560,-151.0,0.000206,2]
[369709597,1751707869569,-151.0,0.000206,2]
[369709598,1751707869579,-438.86253,0.000206,2]
[369709599,1751707869588,-438.86253,0.000206,2]
[369709600,1751707869598,-168.0,0.00020614,2]
[369709601,1751707869607,-672.491142,0.00020673,4]
[369709602,1751707869617,-160.388889,0.00020682,2]
[369709603,1751707869626,-165.49747021,0.00020712,2]
[369709604,1751707869636,-151.0,0.00020721,2]
[369709605,1751707869645,-168.0,0.00020765,2]
[369709606,1751707869655,-205.49733553,0.0002077,4]
[369709607,1751707869664,-160.388889,0.0002081,2]
[369709608,1751707869674,-263.331457,0.00020821,2]
[369709609,1751707869683,-460.0,0.00020821,2]
[369709610,1751707869692,-154.210831,0.00020821,2]
[369709611,1751707869702,-156.13,0.00020821,2]
[369709612,1751707869711,-151.0,0.00020821,2]
[369709613,1751707869720,-151.0,0.00020821,2]
[369709614,1751707869730,-245.216285,0.00020821,2]
[369709615,1751707869739,-151.0,0.00020821,2]
[369709616,1751707869749,-245.216285,0.00020821,2]
[369709617,1751707869758,-460.0,0.00020821,2]
[369709618,1751707869767,-460.0,0.00020821,2]
[369709619,1751707869780,-190.215856,0.00020821,2]
[369709620,1751707869790,-190.215856,0.00020821,2]
[369709621,1751707869799,-682.29,0.00020821,2]
[369709622,1751707869809,-460.0,0.00020821,2]
[369709623,1751707869818,-507.42,0.00020821,2]
[369709624,1751707869827,-469.32,0.00020821,2]
[369709625,1751707869837,-460.0,0.00020821,2]
[369709626,1751707869846,-370.49,0.00020821,2]
[369709627,1751707869855,-460.0,0.00020821,2]
[369709628,1751707869865,-154.36,0.00020821,2]
[369709629,1751707869874,-526.86,0.00020821,2]
[369709630,1751707869883,-660.66,0.00020821,2]
[369709631,1751707869892,-174.64,0.00020821,2]
[369709632,1751707869902,-185.7,0.00020821,2]
[369709633,1751707869911,-389.7,0.00020821,2]
[369709634,1751707869920,-684.71,0.00020821,2]
[369709635,1751707869930,-460.0,0.00020821,2]
[369709636,1751707869938,-484.47,0.00020821,2]
[369709637,1751707869947,-183.215037,0.00020821,2]
[369709638,1751707869956,-183.215037,0.00020821,2]
[369709639,1751707869965,-460.0,0.00020821,2]
[369709640,1751707869975,-1087.2,0.00020821,2]
[369709641,1751707869984,-460.0,0.00020821,2]
[369709642,1751707869993,-3781.13,0.00020821,2]
[369709643,1751707870003,-521.89,0.00020821,2]
[369709644,1751707870012,-460.0,0.00020821,2]
[369709645,1751707870022,-325.59,0.00020821,2]
[369709646,1751707870031,-1571.06,0.00020821,2]
[369709647,1751707870040,-460.0,0.00020821,2]
[369709648,1751707870050,-460.0,0.00020821,2]
[369709649,1751707870059,-151.0,0.00020821,2]
[369709650,1751707870068,-1037.13,0.00020821,2]
[369709651,1751707870077,-460.0,0.00020821,2]
[369709652,1751707870086,-3582.28,0.00020821,2]
[369709653,1751707870095,-460.0,0.00020821,2]
[369709654,1751707870105,-164.83305031,0.00020821,2]
[369709655,1751707870114,-2764.96,0.00020821,2]
[369709656,1751707870123,-604.66,0.00020821,2]
[369709657,1751707870134,-1350.46,0.00020821,2]
[369709658,1751707870143,-1103.03,0.00020821,2]
[369709659,1751707870153,-460.0,0.00020821,2]
[369709660,1751707870162,-612.38,0.00020821,2]
[369709661,1751707870171,-460.0,0.00020821,2]
[369709662,1751707870181,-460.0,0.00020821,2]
[369709663,1751707870191,-789.8,0.00020821,2]
[369709664,1751707870200,-460.0,0.00020821,2]
[369709665,1751707870209,-1554.87,0.00020821,2]
[369709666,1751707870219,-469.04,0.00020821,2]
[369709667,1751707870228,-525.18,0.00020821,2]
[369709668,1751707870237,-1860.12,0.00020821,2]
[369709669,1751707870246,-773.29,0.00020821,2]
[369709670,1751707870256,-2251.26,0.00020821,2]
[369709671,1751707870265,-460.0,0.00020821,2]
[369709672,1751707870275,-531.89,0.00020821,2]
[369709673,1751707870284,-3715.95,0.00020821,2]
[369709674,1751707870293,-595.4,0.00020821,2]
[369709675,1751707870303,-460.0,0.00020821,2]
[369709676,1751707870313,-611.53,0.00020821,2]
[369709677,1751707870322,-246.58,0.00020821,2]
[369709678,1751707870332,-151.0,0.00020821,2]
[369709679,1751707870341,-563.95,0.00020821,2]
[369709680,1751707870350,-1475.55,0.00020821,2]
[369709681,1751707870358,-1348.12,0.00020821,2]
[369709682,1751707870368,-460.0,0.00020821,2]
[369709683,1751707870377,-460.0,0.00020821,2]
[369709684,1751707870386,-1571.18,0.00020821,2]
[369709685,1751707870396,-460.0,0.00020821,2]
[369709686,1751707870405,-151.0,0.00020821,2]
[369709687,1751707870414,-460.0,0.00020821,2]
[369709688,1751707870424,-460.0,0.00020821,2]
[369709689,1751707870435,-151.0,0.00020821,2]
[369709690,1751707870446,-460.0,0.00020821,2]
[369709691,1751707870455,-840.45,0.00020821,2]
[369709692,1751707870464,-592.78,0.00020821,2]
[369709693,1751707870473,-532.91,0.00020821,2]
[369709694,1751707870483,-460.0,0.00020821,2]
[369709695,1751707870493,-3634.14,0.00020821,2]
[369709696,1751707870502,-460.0,0.00020821,2]
[369709697,1751707870511,-876.43,0.00020821,2]
[369709698,1751707870521,-460.0,0.00020821,2]
[369709699,1751707870530,-460.0,0.00020821,2]
[369709700,1751707870540,-2031.79,0.00020821,2]
[369709701,1751707870549,-460.0,0.00020821,2]
[369709702,1751707870558,-409.25558243,0.00020868,2]
[369709703,1751707870568,-165.49747021,0.00020877,2]
[369709704,1751707870577,-1000.0,0.0002088,2]
[369709705,1751707870586,-215.0738,0.00020888,2]
[369709706,1751707870595,-160.388889,0.00020937,2]
[369709707,1751707870604,-8219.26713159,0.00020944,2]
[369709708,1751707870613,-169.99279489,0.00020986,2]
[369709709,1751707870623,-205.49733553,0.00020987,4]
[369709710,1751707870631,-174.845258,0.00020997,4]
[369709711,1751707870640,-500.0,0.00021,2]
[369709712,1751707870650,-2152.0,0.00021024,2]
[369709713,1751707870659,-646.0,0.00021024,2]
[369709714,1751707870668,-406.0,0.00021024,2]
[369709715,1751707870678,-225.298587,0.00021064,2]
[369709716,1751707870687,-225.298587,0.00021064,2]
[369709717,1751707870696,-160.388889,0.00021065,2]
[369709718,1751707870705,-165.49747021,0.00021068,2]
[369709719,1751707870715,-168.0,0.00021075,2]
[369709720,1751707870724,-37319.36016759,0.0002109,2]
[369709721,1751707870734,-151.0,0.0002109,2]
[369709722,1751707870744,-151.0,0.0002109,2]
[369709723,1751707870753,-151.0,0.0002109,2]
[369709724,1751707870763,-151.0,0.0002109,2]
[369709725,1751707870775,-151.0,0.0002109,2]
[369709726,1751707870786,-151.0,0.0002109,2]
[369709727,1751707870796,-151.0,0.0002109,2]
[369709728,1751707870806,-151.0,0.0002109,2]
[369709729,1751707870815,-151.0,0.00021095,2]
[369709730,1751707870824,-151.0,0.00021095,2]
[369709731,1751707870834,-151.0,0.00021095,2]
[369709732,1751707870843,-151.0,0.00021095,2]
[369709733,1751707870854,-151.0,0.00021095,2]
[369709734,1751707870863,-151.0,0.00021095,2]
[369709735,1751707870872,-244.807354,0.00021095,2]
[369709736,1751707870881,-183.701271,0.00021095,2]
[369709737,1751707870890,-411.674275,0.00021095,2]
[369709738,1751707870899,-411.674275,0.00021095,2]
[369709739,1751707870908,-151.0,0.00021095,2]
[369709740,1751707870918,-235.853166,0.00021095,2]
[369709741,1751707870928,-151.0,0.00021095,2]
[369709742,1751707870937,-151.0,0.00021095,2]
[369709743,1751707870947,-225.298587,0.00021095,2]
[369709744,1751707870956,-151.0,0.00021095,2]
[369709745,1751707870966,-225.298587,0.00021095,2]
[369709746,1751707870975,-245.216285,0.00021095,2]
[369709747,1751707870984,-151.0,0.00021095,2]
[369709748,1751707870993,-245.216285,0.00021095,2]
[369709749,1751707871002,-608.84,0.00021095,2]
[369709750,1751707871012,-426.77,0.00021095,2]
[369709751,1751707871023,-190.215856,0.00021095,2]